fUST/lending_fUST_20250408
["ID","MTS","AMOUNT","RATE_DAILY","PERIOD"]
[357486567,1744083049964,-1419.0,0.00022412,2]
[357486568,1744083049974,-251.89398279,0.00022412,2]
[357486569,1744083049983,-500.0,0.00022412,2]
[357486570,1744083049993,-944.88,0.00022416,2]
[357486571,1744083050002,-500.0,0.00022416,2]
[357486572,1744083050012,-1154.64,0.00022416,2]
[357486573,1744083050021,-656.97,0.00022416,2]
[357486574,1744083050030,-500.0,0.00022416,2]
[357486575,1744083050041,-4887.85,0.00022416,2]
[357486576,1744083050051,-500.0,0.00022416,2]
[357486577,1744083050060,-1459.24,0.00022416,2]
[357486578,1744083050070,-1754.0,0.00022416,2]
[357486579,1744083050079,-1732.42,0.00022416,2]
[357486580,1744083050089,-1514.67,0.00022416,2]
[357486581,1744083050099,-1042.87,0.00022416,2]
[357486582,1744083050109,-500.0,0.00022416,2]
[357486583,1744083050118,-992.47,0.00022416,2]
[357486584,1744083050128,-2709.7,0.00022416,2]
[357486585,1744083050138,-500.0,0.00022416,2]
[357486586,1744083050149,-536.03,0.00022416,2]
[357486587,1744083050158,-665.17,0.00022416,2]
[357486588,1744083050168,-1546.39,0.00022416,2]
[357486589,1744083050178,-1947.78,0.00022416,2]
[357486590,1744083050188,-500.0,0.00022416,2]
[357486591,1744083050198,-500.0,0.00022416,2]
[357486592,1744083050208,-500.0,0.00022416,2]
[357486593,1744083050217,-500.0,0.00022416,2]
[357486594,1744083050227,-500.0,0.00022417,2]
[357486595,1744083050237,-500.0,0.00022417,2]
[357486596,1744083050246,-500.0,0.00022417,2]
[357486597,1744083050257,-500.0,0.00022417,2]
[357486598,1744083050267,-623.99,0.00022417,2]
[357486599,1744083050277,-500.0,0.00022417,2]
[357486600,1744083050286,-171.15245186,0.00022417,2]
[357486601,1744083050296,-1324.29,0.00022417,2]
[357486602,1744083050306,-500.0,0.00022417,2]
[357486603,1744083050315,-500.0,0.00022417,2]
[357486604,1744083050325,-500.0,0.00022417,2]
[357486605,1744083050335,-1015.28,0.00022417,2]
[357486606,1744083050346,-703.08,0.00022417,2]
[357486607,1744083050355,-1033.13,0.00022417,2]
[357486608,1744083050365,-1145.94,0.00022417,2]
[357486609,1744083050375,-412.37280438,0.00022417,2]
[357486610,1744083050385,-500.0,0.00022417,2]
[357486611,1744083050394,-599.06208993,0.00022417,2]
[357486612,1744083050404,-517.35788877,0.00022417,2]
[357486613,1744083050413,-1260.38,0.00022417,2]
[357486614,1744083050423,-1222.96,0.00022417,2]
[357486615,1744083050433,-500.0,0.00022417,2]
[357486616,1744083050443,-500.0,0.00022417,2]
[357486617,1744083050453,-500.0,0.00022417,2]
[357486618,1744083050463,-500.0,0.00022417,2]
[357486619,1744083050473,-375.22860736,0.00022417,2]
[357486620,1744083050483,-214.21348365,0.00022417,2]
[357486621,1744083050504,-500.0,0.00022417,2]
[357486622,1744083050514,-500.0,0.00022417,2]
[357486623,1744083050524,-528.77,0.00022417,2]
[357486624,1744083050534,-500.0,0.00022417,2]
[357486625,1744083050544,-1021.44,0.00022417,2]
[357486626,1744083050553,-500.0,0.00022417,2]
[357486627,1744083050563,-500.0,0.00022417,2]
[357486628,1744083050573,-2104.84,0.00022417,2]
[357486629,1744083050583,-647.69,0.00022417,2]
[357486630,1744083050593,-1159.28,0.00022417,2]
[357486631,1744083050603,-714.58,0.00022417,2]
[357486632,1744083050612,-500.0,0.00022417,2]
[357486633,1744083050622,-185.51951348,0.00022465,2]
[357486634,1744083050631,-500.0,0.00022465,2]
[357486635,1744083050642,-500.0,0.00022465,2]
[357486636,1744083050654,-500.0,0.00022465,2]
[357486637,1744083050664,-500.0,0.00022465,2]
[357486638,1744083050674,-500.0,0.00022465,2]
[357486639,1744083050685,-500.0,0.00022465,2]
[357486640,1744083050695,-500.0,0.00022465,2]
[357486641,1744083050704,-500.0,0.00022465,2]
[357486642,1744083050714,-513.38290688,0.00022465,2]
[357486643,1744083050725,-500.0,0.00022465,2]
[357486644,1744083050735,-500.0,0.00022465,2]
[357486645,1744083050744,-500.0,0.00022465,2]
[357486646,1744083050754,-500.0,0.00022465,2]
[357486647,1744083050764,-500.0,0.00022465,2]
[357486648,1744083050774,-185.76001393,0.00022465,2]
[357486649,1744083050784,-500.0,0.00022465,2]
[357486650,1744083050793,-500.0,0.00022465,2]
[357486651,1744083050802,-387.18960644,0.00022465,2]
[357486652,1744083050812,-500.0,0.00022465,2]
[357486653,1744083050822,-500.0,0.00022465,2]
[357486654,1744083050832,-500.0,0.00022465,2]
[357486655,1744083050842,-500.0,0.00022465,2]
[357486656,1744083050852,-500.0,0.00022465,2]
[357486657,1744083050861,-500.0,0.00022465,2]
[357486658,1744083050872,-500.0,0.00022465,2]
[357486659,1744083050881,-201.25648485,0.00022465,2]
[357486660,1744083050891,-500.0,0.00022465,2]
[357486661,1744083050901,-500.0,0.00022465,2]
[357486662,1744083050911,-500.0,0.00022465,2]
[357486663,1744083050920,-500.0,0.00022465,2]
[357486664,1744083050930,-500.0,0.00022465,2]
[357486665,1744083050939,-500.0,0.00022465,2]
[357486666,1744083050949,-524.42,0.00022465,2]
[357486667,1744083050959,-500.0,0.00022473,2]
[357486668,1744083050968,-500.0,0.00022473,2]
[357486669,1744083050978,-183.69513266,0.00022473,2]
[357486670,1744083050987,-510.33701651,0.00022473,2]
[357486671,1744083050997,-502.10400037,0.00022473,2]
[357486672,1744083051006,-501.38183964,0.00022473,2]
[357486673,1744083051016,-502.5418433,0.00022473,2]
[357486674,1744083051025,-593.05159071,0.00022473,2]
[357486675,1744083051036,-501.25735635,0.00022473,2]
[357486676,1744083051045,-501.28287713,0.00022473,2]
[357486677,1744083051055,-435.50982937,0.00022473,2]
[357486678,1744083051065,-500.87750444,0.00022473,2]
[357486679,1744083051074,-552.26994576,0.00022473,2]
[357486680,1744083051084,-500.44014391,0.00022473,2]
[357486681,1744083051094,-501.49778525,0.00022473,2]
[357486682,1744083051103,-500.55098933,0.00022473,2]
[357486683,1744083051113,-500.49303946,0.00022473,2]
[357486684,1744083051123,-502.07304544,0.00022473,2]
[357486685,1744083051133,-501.04185555,0.00022473,2]
[357486686,1744083051143,-501.01809197,0.00022473,2]
[357486687,1744083051153,-615.28107241,0.00022473,2]
[357486688,1744083051163,-430.08989638,0.00022473,2]
[357486689,1744083051172,-500.0,0.00022473,2]
[357486690,1744083051182,-501.02983718,0.00022473,2]
[357486691,1744083051191,-500.0,0.00022473,2]
[357486692,1744083051201,-500.0,0.00022473,2]
[357486693,1744083051210,-500.96418781,0.00022473,2]
[357486694,1744083051220,-500.0,0.00022473,2]
[357486695,1744083051229,-500.0,0.00022473,2]
[357486696,1744083051239,-500.0,0.00022473,2]
[357486697,1744083051249,-615.16376688,0.00022473,2]
[357486698,1744083051258,-500.0,0.00022473,2]
[357486699,1744083051268,-300.36949938,0.00022473,2]
[357486700,1744083051277,-500.58205629,0.00022473,2]
[357486701,1744083051287,-501.32097158,0.00022473,2]
[357486702,1744083051298,-608.3465431,0.00022473,2]
[357486703,1744083051308,-150.16802362,0.00022473,2]
[357486704,1744083051318,-501.15278312,0.00022567,2]
[357486705,1744083051327,-420.0,0.000226,2]
[357486706,1744083051337,-207.4,0.00022673,2]
[357486707,1744083051347,-500.0,0.00022686,2]
[357486708,1744083051356,-500.0,0.00022686,2]
[357486709,1744083051366,-500.0,0.00022686,2]
[357486710,1744083051375,-500.0,0.00022686,2]
[357486711,1744083051385,-586.9,0.00022686,2]
[357486712,1744083051394,-500.0,0.00022686,2]
[357486713,1744083051404,-677.05,0.00022686,2]
[357486714,1744083051413,-500.0,0.00022686,2]
[357486715,1744083051423,-551.47,0.00022686,2]
[357486716,1744083051433,-500.0,0.00022686,2]
[357486717,1744083051442,-500.0,0.00022686,2]
[357486718,1744083051451,-500.0,0.00022686,2]
[357486719,1744083051462,-653.92,0.00022686,2]
[357486720,1744083051472,-500.0,0.00022686,2]
[357486721,1744083051485,-500.0,0.00022686,2]
[357486722,1744083051495,-500.0,0.00022686,2]
[357486723,1744083051505,-730.84,0.00022686,2]
[357486724,1744083051515,-500.0,0.00022686,2]
[357486725,1744083051525,-500.0,0.00022686,2]
[357486726,1744083051535,-858.61,0.00022686,2]
[357486727,1744083051545,-152.13772553,0.00022686,2]
[357486728,1744083051554,-500.0,0.00022686,2]
[357486729,1744083051564,-500.0,0.00022686,2]
[357486730,1744083051574,-1066.41,0.00022686,2]
[357486731,1744083051584,-500.0,0.00022686,2]
[357486732,1744083051594,-500.0,0.00022686,2]
[357486733,1744083051604,-500.0,0.00022686,2]
[357486734,1744083051613,-506.71,0.00022686,2]
[357486735,1744083051623,-500.0,0.00022686,2]
[357486736,1744083051634,-500.0,0.00022686,2]
[357486737,1744083051646,-503.39729275,0.00022686,2]
[357486738,1744083051656,-500.0,0.00022686,2]
[357486739,1744083051666,-500.0,0.00022686,2]
[357486740,1744083051676,-500.0,0.00022686,2]
[357486741,1744083051687,-1000.78,0.00022686,2]
[357486742,1744083051697,-500.0,0.00022686,2]
[357486743,1744083051706,-500.0,0.00022686,2]
[357486744,1744083051716,-500.0,0.00022686,2]
[357486745,1744083051728,-500.0,0.00022686,2]
[357486746,1744083051738,-500.0,0.00022686,2]
[357486747,1744083051750,-331.93918513,0.00022686,2]
[357486748,1744083051760,-500.0,0.00022686,2]
[357486749,1744083051769,-500.0,0.00022686,2]
[357486750,1744083051779,-1735.98,0.00022686,2]
[357486751,1744083051788,-500.0,0.00022686,2]
[357486752,1744083051797,-523.27,0.00022686,2]
[357486753,1744083051807,-409.2875185,0.00022686,2]
[357486754,1744083051816,-784.63,0.00022686,2]
[357486755,1744083051825,-2072.68,0.00022686,2]
[357486756,1744083051834,-500.0,0.00022686,2]
[357486757,1744083051844,-747.85,0.00022686,2]
[357486758,1744083051853,-1220.43,0.00022686,2]
[357486759,1744083051862,-500.0,0.00022686,2]
[357486760,1744083051872,-622.27838519,0.00022686,2]
[357486761,1744083051881,-500.0,0.00022686,2]
[357486762,1744083051890,-156.80660021,0.00022686,2]
[357486763,1744083051900,-1360.36,0.00022686,2]
[357486764,1744083051909,-500.0,0.00022686,2]
[357486765,1744083051919,-500.0,0.00022686,2]
[357486766,1744083051928,-500.0,0.00022686,2]
[357486767,1744083051938,-1028.62,0.00022686,2]
[357486768,1744083051948,-500.0,0.00022686,2]
[357486769,1744083051957,-500.0,0.00022686,2]
[357486770,1744083051967,-1696.5,0.00022686,2]
[357486771,1744083051978,-1052.2,0.00022686,2]
[357486772,1744083051995,-524.48,0.00022686,2]
[357486773,1744083052012,-500.0,0.00022686,2]
[357486774,1744083052023,-500.0,0.00022686,2]
[357486775,1744083052042,-512.91102725,0.00022686,2]
[357486776,1744083052055,-1205.17,0.00022686,2]
[357486777,1744083052064,-1527.76,0.00022686,2]
[357486778,1744083052073,-500.0,0.00022686,2]
[357486779,1744083052083,-500.0,0.00022686,2]
[357486780,1744083052092,-1876.59,0.00022686,2]
[357486781,1744083052102,-500.0,0.00022686,2]
[357486782,1744083052111,-500.0,0.00022686,2]
[357486783,1744083052121,-500.0,0.00022686,2]
[357486784,1744083052131,-500.0,0.00022686,2]
[357486785,1744083052141,-2733.3,0.00022686,2]
[357486786,1744083052151,-503.57,0.00022686,2]
[357486787,1744083052161,-500.0,0.00022686,2]
[357486788,1744083052170,-500.0,0.00022686,2]
[357486789,1744083052180,-500.0,0.00022686,2]
[357486790,1744083052190,-500.0,0.00022686,2]
[357486791,1744083052199,-500.0,0.00022686,2]
[357486792,1744083052210,-500.0,0.00022686,2]
[357486793,1744083052219,-500.0,0.00022686,2]
[357486794,1744083052229,-1211.76,0.00022686,2]
[357486795,1744083052238,-500.0,0.00022686,2]
[357486796,1744083052247,-500.0,0.00022686,2]
[357486797,1744083052257,-500.0,0.00022686,2]
[357486798,1744083052266,-500.0,0.00022686,2]
[357486799,1744083052275,-1059.44,0.00022686,2]
[357486800,1744083052287,-500.0,0.00022686,2]
[357486801,1744083052308,-1003.86,0.00022686,2]
[357486802,1744083052334,-1109.73,0.00022686,2]
[357486803,1744083052344,-500.0,0.00022686,2]
[357486804,1744083052354,-500.0,0.00022686,2]
[357486805,1744083052364,-3676.57,0.00022686,2]
[357486806,1744083052374,-500.0,0.00022686,2]
[357486807,1744083052384,-1685.97,0.00022686,2]
[357486808,1744083052393,-500.0,0.00022686,2]
[357486809,1744083052403,-232.98880244,0.00022686,2]
[357486810,1744083052412,-500.0,0.00022686,2]
[357486811,1744083052422,-2170.99,0.00022686,2]
[357486812,1744083052431,-500.0,0.00022686,2]
[357486813,1744083052442,-7839.19,0.00022686,2]
[357486814,1744083052451,-500.0,0.00022686,2]
[357486815,1744083052461,-1042.21,0.00022686,2]
[357486816,1744083052470,-1419.0,0.00022686,2]
[357486817,1744083052479,-500.0,0.00022686,2]
[357486818,1744083052489,-944.88,0.0002269,2]
[357486819,1744083052499,-500.0,0.0002269,2]
[357486820,1744083052508,-1154.64,0.0002269,2]
[357486821,1744083052523,-656.97,0.0002269,2]
[357486822,1744083052532,-500.0,0.0002269,2]
[357486823,1744083052542,-4887.85,0.0002269,2]
[357486824,1744083052551,-500.0,0.0002269,2]
[357486825,1744083052560,-1459.24,0.0002269,2]
[357486826,1744083052570,-1754.0,0.0002269,2]
[357486827,1744083052579,-1732.42,0.0002269,2]
[357486828,1744083052589,-1514.67,0.0002269,2]
[357486829,1744083052742,-1042.87,0.0002269,2]
[357486830,1744083052753,-500.0,0.0002269,2]
[357486831,1744083052763,-992.47,0.0002269,2]
[357486832,1744083052772,-2709.7,0.0002269,2]
[357486833,1744083052782,-500.0,0.0002269,2]
[357486834,1744083052791,-536.03,0.0002269,2]
[357486835,1744083052800,-665.17,0.0002269,2]
[357486836,1744083052811,-1546.39,0.0002269,2]
[357486837,1744083052820,-1947.78,0.0002269,2]
[357486838,1744083052830,-500.0,0.0002269,2]
[357486839,1744083052840,-500.0,0.0002269,2]
[357486840,1744083052850,-500.0,0.0002269,2]
[357486841,1744083052863,-500.0,0.0002269,2]
[357486842,1744083052873,-500.0,0.00022691,2]
[357486843,1744083052882,-500.0,0.00022691,2]
[357486844,1744083052891,-500.0,0.00022691,2]
[357486845,1744083052901,-500.0,0.00022691,2]
[357486846,1744083052911,-623.99,0.00022691,2]
[357486847,1744083052920,-500.0,0.00022691,2]
[357486848,1744083052930,-1324.29,0.00022691,2]
[357486849,1744083052940,-500.0,0.00022691,2]
[357486850,1744083052950,-500.0,0.00022691,2]
[357486851,1744083052961,-500.0,0.00022691,2]
[357486852,1744083052970,-1015.28,0.00022691,2]
[357486853,1744083052980,-703.08,0.00022691,2]
[357486854,1744083052989,-1033.13,0.00022691,2]
[357486855,1744083052999,-1145.94,0.00022691,2]
[357486856,1744083053008,-500.0,0.00022691,2]
[357486857,1744083053018,-1260.38,0.00022691,2]
[357486858,1744083053028,-1222.96,0.00022691,2]
[357486859,1744083053038,-500.0,0.00022691,2]
[357486860,1744083053048,-322.23845734,0.00022691,2]
[357486861,1744083053057,-500.0,0.00022691,2]
[357486862,1744083053067,-500.0,0.00022691,2]
[357486863,1744083053078,-500.0,0.00022691,2]
[357486864,1744083053087,-500.0,0.00022691,2]
[357486865,1744083053097,-528.77,0.00022691,2]
[357486866,1744083053107,-500.0,0.00022691,2]
[357486867,1744083053117,-1021.44,0.00022691,2]
[357486868,1744083053127,-500.0,0.00022691,2]
[357486869,1744083053136,-500.0,0.00022691,2]
[357486870,1744083053146,-2104.84,0.00022691,2]
[357486871,1744083053156,-647.69,0.00022691,2]
[357486872,1744083053165,-1159.28,0.00022691,2]
[357486873,1744083053174,-714.58,0.00022691,2]
[357486874,1744083053183,-500.0,0.00022691,2]
[357486875,1744083053192,-500.0,0.00022739,2]
[357486876,1744083053202,-500.0,0.00022739,2]
[357486877,1744083053212,-500.0,0.00022739,2]
[357486878,1744083053222,-500.0,0.00022739,2]
[357486879,1744083053232,-500.0,0.00022739,2]
[357486880,1744083053241,-500.0,0.00022739,2]
[357486881,1744083053250,-500.0,0.00022739,2]
[357486882,1744083053260,-500.0,0.00022739,2]
[357486883,1744083053269,-500.0,0.00022739,2]
[357486884,1744083053279,-500.0,0.00022739,2]
[357486885,1744083053289,-296.45367776,0.00022739,2]
[357486886,1744083053298,-500.0,0.00022739,2]
[357486887,1744083053307,-500.0,0.00022739,2]
[357486888,1744083053317,-500.0,0.00022739,2]
[357486889,1744083053327,-500.0,0.00022739,2]
[357486890,1744083053337,-500.0,0.00022739,2]
[357486891,1744083053347,-500.0,0.00022739,2]
[357486892,1744083053356,-500.0,0.00022739,2]
[357486893,1744083053367,-500.0,0.00022739,2]
[357486894,1744083053376,-333.02624848,0.00022739,2]
[357486895,1744083053386,-500.0,0.00022739,2]
[357486896,1744083053396,-500.0,0.00022739,2]
[357486897,1744083053406,-500.0,0.00022739,2]
[357486898,1744083053416,-524.42,0.00022739,2]
[357486899,1744083053426,-156.16501903,0.00022886,2]
[357486900,1744083053437,-500.0,0.00022886,2]
[357486901,1744083053446,-500.0,0.00022896,2]
[357486902,1744083053456,-500.0,0.00022896,2]
[357486903,1744083053466,-500.0,0.0002296,2]
[357486904,1744083053476,-463.79323441,0.0002296,2]
[357486905,1744083053485,-500.0,0.0002296,2]
[357486906,1744083053495,-500.0,0.0002296,2]
[357486907,1744083053504,-586.9,0.0002296,2]
[357486908,1744083053514,-500.0,0.0002296,2]
[357486909,1744083053524,-677.05,0.0002296,2]
[357486910,1744083053533,-500.0,0.0002296,2]
[357486911,1744083053544,-551.47,0.0002296,2]
[357486912,1744083053554,-500.0,0.0002296,2]
[357486913,1744083053563,-500.0,0.0002296,2]
[357486914,1744083053574,-500.0,0.0002296,2]
[357486915,1744083053584,-653.92,0.0002296,2]
[357486916,1744083053593,-500.0,0.0002296,2]
[357486917,1744083053603,-500.0,0.0002296,2]
[357486918,1744083053613,-500.0,0.0002296,2]
[357486919,1744083053623,-730.84,0.0002296,2]
[357486920,1744083053633,-500.0,0.0002296,2]
[357486921,1744083053644,-500.0,0.0002296,2]
[357486922,1744083053654,-858.61,0.0002296,2]
[357486923,1744083053664,-500.0,0.0002296,2]
[357486924,1744083053674,-500.0,0.0002296,2]
[357486925,1744083053684,-1066.41,0.0002296,2]
[357486926,1744083053693,-500.0,0.0002296,2]
[357486927,1744083053703,-500.0,0.0002296,2]
[357486928,1744083053713,-500.0,0.0002296,2]
[357486929,1744083053723,-506.71,0.0002296,2]
[357486930,1744083053733,-500.0,0.0002296,2]
[357486931,1744083053743,-500.0,0.0002296,2]
[357486932,1744083053753,-500.0,0.0002296,2]
[357486933,1744083053763,-500.0,0.0002296,2]
[357486934,1744083053772,-1000.78,0.0002296,2]
[357486935,1744083053782,-500.0,0.0002296,2]
[357486936,1744083053792,-500.0,0.0002296,2]
[357486937,1744083053802,-192.91527825,0.0002296,2]
[357486938,1744083053812,-363.66530971,0.0002296,2]
[357486939,1744083053823,-500.0,0.0002296,2]
[357486940,1744083053832,-500.0,0.0002296,2]
[357486941,1744083053843,-319.42185549,0.0002296,2]
[357486942,1744083053853,-1735.98,0.0002296,2]
[357486943,1744083053862,-500.0,0.0002296,2]
[357486944,1744083053872,-523.27,0.0002296,2]
[357486945,1744083053882,-784.63,0.0002296,2]
[357486946,1744083053891,-2072.68,0.0002296,2]
[357486947,1744083053901,-500.0,0.0002296,2]
[357486948,1744083053912,-747.85,0.0002296,2]
[357486949,1744083053922,-1220.43,0.0002296,2]
[357486950,1744083053933,-500.0,0.0002296,2]
[357486951,1744083053943,-500.0,0.0002296,2]
[357486952,1744083053953,-1360.36,0.0002296,2]
[357486953,1744083053963,-421.18235428,0.0002296,2]
[357486954,1744083053973,-500.0,0.0002296,2]
[357486955,1744083053983,-500.0,0.0002296,2]
[357486956,1744083053994,-1028.62,0.0002296,2]
[357486957,1744083054004,-500.0,0.0002296,2]
[357486958,1744083054015,-500.0,0.0002296,2]
[357486959,1744083054024,-1696.5,0.0002296,2]
[357486960,1744083054035,-1052.2,0.0002296,2]
[357486961,1744083054044,-524.48,0.0002296,2]
[357486962,1744083054054,-500.0,0.0002296,2]
[357486963,1744083054064,-500.0,0.0002296,2]
[357486964,1744083054074,-1205.17,0.0002296,2]
[357486965,1744083054084,-1527.76,0.0002296,2]
[357486966,1744083054094,-500.0,0.0002296,2]
[357486967,1744083054104,-500.0,0.0002296,2]
[357486968,1744083054114,-1876.59,0.0002296,2]
[357486969,1744083054124,-500.0,0.0002296,2]
[357486970,1744083054134,-500.0,0.0002296,2]
[357486971,1744083054143,-500.0,0.0002296,2]
[357486972,1744083054153,-500.0,0.0002296,2]
[357486973,1744083054163,-2733.3,0.0002296,2]
[357486974,1744083054172,-503.57,0.0002296,2]
[357486975,1744083054182,-500.0,0.0002296,2]
[357486976,1744083054192,-500.0,0.0002296,2]
[357486977,1744083054201,-500.0,0.0002296,2]
[357486978,1744083054211,-500.0,0.0002296,2]
[357486979,1744083054221,-500.0,0.0002296,2]
[357486980,1744083054237,-500.0,0.0002296,2]
[357486981,1744083054258,-508.52054923,0.0002296,2]
[357486982,1744083054278,-1211.76,0.0002296,2]
[357486983,1744083054289,-500.0,0.0002296,2]
[357486984,1744083054300,-500.0,0.0002296,2]
[357486985,1744083054310,-500.0,0.0002296,2]
[357486986,1744083054321,-500.0,0.0002296,2]
[357486987,1744083054331,-1059.44,0.0002296,2]
[357486988,1744083054341,-500.0,0.0002296,2]
[357486989,1744083054352,-1003.86,0.0002296,2]
[357486990,1744083054363,-1109.73,0.0002296,2]
[357486991,1744083054373,-500.0,0.0002296,2]
[357486992,1744083054384,-500.0,0.0002296,2]
[357486993,1744083054395,-3676.57,0.0002296,2]
[357486994,1744083054404,-500.0,0.0002296,2]
[357486995,1744083054414,-1685.97,0.0002296,2]
[357486996,1744083054424,-500.0,0.0002296,2]
[357486997,1744083054434,-500.0,0.0002296,2]
[357486998,1744083054444,-2170.99,0.0002296,2]
[357486999,1744083054454,-500.0,0.0002296,2]
[357487000,1744083054464,-7839.19,0.0002296,2]
[357487001,1744083054475,-500.0,0.0002296,2]
[357487002,1744083054487,-1042.21,0.0002296,2]
[357487003,1744083054497,-1419.0,0.0002296,2]
[357487004,1744083054506,-944.88,0.00022964,2]
[357487005,1744083054519,-500.0,0.00022964,2]
[357487006,1744083054528,-1154.64,0.00022964,2]
[357487007,1744083054538,-656.97,0.00022964,2]
[357487008,1744083054548,-500.0,0.00022964,2]
[357487009,1744083054558,-4887.85,0.00022964,2]
[357487010,1744083054568,-500.0,0.00022964,2]
[357487011,1744083054578,-1459.24,0.00022964,2]
[357487012,1744083054588,-1754.0,0.00022964,2]
[357487013,1744083054597,-1732.42,0.00022964,2]
[357487014,1744083054607,-1514.67,0.00022964,2]
[357487015,1744083054616,-1042.87,0.00022964,2]
[357487016,1744083054626,-500.0,0.00022964,2]
[357487017,1744083054637,-992.47,0.00022964,2]
[357487018,1744083054651,-2709.7,0.00022964,2]
[357487019,1744083054662,-500.0,0.00022964,2]
[357487020,1744083054672,-536.03,0.00022964,2]
[357487021,1744083054683,-665.17,0.00022964,2]
[357487022,1744083054694,-1546.39,0.00022964,2]
[357487023,1744083054705,-1947.78,0.00022964,2]
[357487024,1744083054715,-506.90679761,0.00022964,2]
[357487025,1744083054730,-500.0,0.00022964,2]
[357487026,1744083054740,-194.43115358,0.00022964,2]
[357487027,1744083054752,-500.0,0.00022964,2]
[357487028,1744083054765,-500.0,0.00022965,2]
[357487029,1744083054775,-500.0,0.00022965,2]
[357487030,1744083054785,-500.0,0.00022965,2]
[357487031,1744083054796,-311.71871736,0.00022965,2]
[357487032,1744083054807,-623.99,0.00022965,2]
[357487033,1744083054819,-500.0,0.00022965,2]
[357487034,1744083054830,-1324.29,0.00022965,2]
[357487035,1744083054839,-500.0,0.00022965,2]
[357487036,1744083054849,-591.40586613,0.00022965,2]
[357487037,1744083054863,-500.0,0.00022965,2]
[357487038,1744083054873,-1015.28,0.00022965,2]
[357487039,1744083054882,-703.08,0.00022965,2]
[357487040,1744083054891,-1033.13,0.00022965,2]
[357487041,1744083054901,-1145.94,0.00022965,2]
[357487042,1744083054910,-500.0,0.00022965,2]
[357487043,1744083054920,-1260.38,0.00022965,2]
[357487044,1744083054929,-1222.96,0.00022965,2]
[357487045,1744083054938,-500.0,0.00022965,2]
[357487046,1744083054947,-500.0,0.00022965,2]
[357487047,1744083054957,-500.0,0.00022965,2]
[357487048,1744083054966,-500.0,0.00022965,2]
[357487049,1744083054975,-500.0,0.00022965,2]
[357487050,1744083054984,-528.77,0.00022965,2]
[357487051,1744083054993,-500.0,0.00022965,2]
[357487052,1744083055003,-1021.44,0.00022965,2]
[357487053,1744083055015,-500.0,0.00022965,2]
[357487054,1744083055024,-500.0,0.00022965,2]
[357487055,1744083055033,-2104.84,0.00022965,2]
[357487056,1744083055043,-647.69,0.00022965,2]
[357487057,1744083055053,-1159.28,0.00022965,2]
[357487058,1744083055062,-714.58,0.00022965,2]
[357487059,1744083055072,-500.0,0.00022965,2]
[357487060,1744083055081,-5553.03145314,0.00023,4]
[357487061,1744083055090,-151.0,0.00023,2]
[357487062,1744083055100,-202.89924348,0.00023,2]
[357487063,1744083055109,-500.0,0.00023013,2]
[357487064,1744083055119,-500.0,0.00023013,2]
[357487065,1744083055128,-500.0,0.00023013,2]
[357487066,1744083055138,-500.0,0.00023013,2]